bitfinex-derivatives/quotes_ETHF0:USTF0_20240920
["timestamp","ask_amount","ask_price","bid_price","bid_amount"]
[1726847284693,2.82859738,2555.6,2555.4,5.939]
[1726847284893,3.21987738,2555.6,2555.4,5.939]
[1726847285087,2.82859738,2555.6,2555.4,5.939]
[1726847285795,3.21986738,2555.6,2555.4,5.939]
[1726847286089,3.21987738,2555.6,2555.4,5.939]
[1726847286694,2.82859738,2555.6,2555.4,5.939]
[1726847286897,3.21987738,2555.6,2555.4,5.939]
[1726847287392,2.82859738,2555.6,2555.4,5.939]
[1726847287797,3.21987738,2555.6,2555.4,5.939]
[1726847287991,0.3913,2555.5,2555.1,2.75]
[1726847288193,0.3913,2555.5,2555.2,6.32933]
[1726847288397,2.43649738,2555.5,2555.2,6.32933]
[1726847288594,0.39134,2555.2,2554.9,0.76867]
[1726847288788,1.0223099,2555.0,2554.9,5.938]
[1726847288987,1.02236352,2555.0,2554.9,5.938]
[1726847289294,0.39136,2555.0,2554.9,5.938]
[1726847289489,6.44429738,2555.1,2554.7,4.198]
[1726847289688,4.2302085,2554.8,2554.6,5.938]
[1726847289893,3.59921,2554.8,2554.6,5.938]
[1726847290092,3.59921,2554.8,2554.5,0.39143]
[1726847290093,3.59921,2554.8,2554.2,0.3894]
[1726847290094,0.39145,2554.5,2554.2,0.3894]
[1726847290292,2.21388751,2554.4,2554.0,0.39151]
[1726847290594,3.59929,2554.2,2553.9,6.33052]
[1726847290794,1.0227337,2554.0,2553.9,6.33052]
[1726847290994,1.0227337,2554.0,2553.9,5.939]
[1726847291194,1.0227337,2554.0,2553.9,6.33053]
[1726847291492,1.0227337,2554.0,2553.9,5.939]
[1726847292194,1.0227337,2554.1,2553.9,5.939]
[1726847292389,1.0227337,2554.1,2554.0,3.14152]
[1726847292594,1.0227337,2554.3,2554.0,6.6652]
[1726847292790,4.2305337,2554.6,2554.2,2.75]
[1726847292995,3.2078,2554.6,2554.5,3.14144]
[1726847293291,1.0227337,2554.8,2554.5,3.14144]
[1726847293501,1.0227337,2554.8,2554.6,0.39142]
[1726847293797,1.02217711,2554.8,2554.7,4.9162663]
[1726847294395,2.04519738,2555.0,2554.7,4.9162663]
[1726847294396,2.43656738,2555.0,2554.7,4.9162663]
[1726847294696,0.39137,2555.0,2554.7,4.9162663]
[1726847294898,2.04519738,2555.0,2554.7,4.9162663]
[1726847295094,2.04519738,2555.1,2554.8,0.3738]
[1726847295489,3.2078,2555.2,2554.8,0.76519]
[1726847295490,5.25299738,2555.2,2554.8,0.76519]
[1726847296401,5.64433738,2555.2,2554.8,0.3738]
[1726847297089,2.04519738,2555.1,2554.8,0.3738]
[1726847297291,2.04519738,2555.0,2554.8,0.3738]
[1726847298290,2.43654738,2555.1,2554.8,0.3738]
[1726847298495,2.04519738,2555.1,2554.8,3.7538]
[1726847298693,6.2724578,2555.5,2555.2,0.39133]
[1726847298694,2.04519738,2555.4,2555.2,0.39133]
[1726847298896,2.04519738,2555.4,2555.3,0.77802]
[1726847299194,2.04519738,2555.5,2555.3,0.77802]
[1726847299402,2.45519738,2555.6,2555.3,0.3867]
[1726847299604,2.04519738,2555.6,2555.4,0.39129]
[1726847299901,2.04519738,2555.7,2555.5,5.923]
[1726847300206,2.04519738,2555.6,2555.5,6.31429]
[1726847300405,2.04519738,2555.6,2555.5,5.923]
[1726847300600,2.04519738,2555.7,2555.5,5.923]
[1726847300802,2.04519738,2555.6,2555.5,5.923]
[1726847302103,2.04519738,2555.6,2555.5,6.31429]
[1726847302299,2.04519738,2555.7,2555.6,0.39127]
[1726847302512,2.04519738,2555.8,2555.7,0.39126]
[1726847302804,2.04519738,2555.9,2555.7,0.39126]
[1726847302997,2.04519738,2555.9,2555.6,0.372]
[1726847303306,2.04519738,2555.9,2555.6,0.76327]
[1726847303502,2.04519738,2556.1,2555.9,0.39123]
[1726847303703,2.54115694,2556.2,2556.0,0.7666]
[1726847303704,2.04519738,2556.2,2556.0,0.7666]
[1726847303895,2.04519738,2556.3,2556.0,0.7666]
[1726847304209,2.04519738,2556.3,2556.1,0.39119]
[1726847304399,2.04519738,2556.3,2556.2,0.39118]
[1726847304598,2.04519738,2556.4,2556.0,0.3754]
[1726847304803,2.04519738,2556.4,2556.1,0.39119]
[1726847305405,2.04519738,2556.4,2556.0,0.3754]
[1726847305406,2.43635738,2556.4,2556.0,0.3754]
[1726847305613,2.43635738,2556.4,2556.1,0.39119]
[1726847305810,5.25299738,2556.4,2556.1,0.39119]
[1726847306505,0.39117,2556.3,2556.0,0.3754]
[1726847307008,2.43636738,2556.3,2556.0,0.3754]
[1726847307208,2.43636738,2556.3,2556.0,0.76661]
[1726847307417,2.43636738,2556.3,2556.0,0.3754]
[1726847307808,0.39117,2556.3,2556.0,0.3754]
[1726847308004,2.04519738,2556.4,2555.8,3.2078]
[1726847308203,2.43637738,2556.3,2556.0,0.39121]
[1726847308406,2.43637738,2556.3,2555.8,3.6157]
[1726847308407,0.3956,2556.2,2555.8,3.6157]
[1726847308602,5.64419738,2556.1,2555.8,0.79913]
[1726847308806,6.04719738,2556.1,2555.8,0.79913]
[1726847309003,0.39123,2555.9,2555.6,0.372]
[1726847309315,0.39123,2555.9,2555.7,0.39126]
[1726847309614,0.39122,2556.0,2555.6,0.372]
[1726847309813,0.7942,2556.1,2555.6,0.372]
[1726847310013,0.7942,2556.1,2555.9,0.39122]
[1726847310014,0.403,2556.1,2555.9,0.39122]
[1726847310309,0.7942,2556.1,2555.6,0.372]
[1726847310502,2.04519738,2556.2,2555.7,3.38]
[1726847310702,5.38262432,2556.3,2556.0,0.3912]
[1726847310914,5.38262432,2556.3,2556.1,0.4101]
[1726847310915,2.43636738,2556.3,2556.1,0.4101]
[1726847311101,0.39118,2556.2,2555.9,0.39122]
[1726847311309,0.39121,2556.1,2555.8,0.39123]
[1726847311511,0.77401,2556.1,2555.8,0.39123]
[1726847311809,3.5906,2556.1,2555.6,0.372]
[1726847312009,0.409,2556.0,2555.6,0.372]
[1726847312214,0.39123,2555.9,2555.6,0.76326]
[1726847312511,0.39124,2555.8,2555.6,0.372]
[1726847312711,0.39125,2555.8,2555.6,0.76327]
[1726847312911,0.4101,2555.9,2555.6,0.372]
[1726847313110,0.80133,2555.9,2555.6,0.76326]
[1726847313611,0.409,2556.0,2555.8,0.39124]
[1726847313811,0.409,2556.0,2555.7,5.921]
[1726847314017,0.409,2556.0,2555.8,0.39124]
[1726847314315,0.3828,2556.1,2555.9,0.39123]
[1726847314522,0.3828,2556.1,2555.7,5.921]
[1726847314523,2.81919738,2556.1,2555.8,0.39124]
[1726847314815,0.39121,2556.0,2555.7,5.921]
[1726847315012,2.81919738,2556.1,2555.8,0.39124]
[1726847315416,2.81919738,2556.1,2555.8,0.39123]
[1726847316019,0.774,2556.1,2555.8,0.39123]
[1726847316412,0.39123,2555.9,2555.7,5.921]
[1726847316612,3.2078,2556.0,2555.7,5.921]
[1726847316808,3.2078,2556.0,2555.8,0.39124]
[1726847317013,0.774,2556.1,2555.8,0.39123]
[1726847318019,0.774,2556.1,2555.7,6.31225]
[1726847318020,0.39121,2556.0,2555.7,6.31225]
[1726847318414,0.39122,2556.0,2555.7,6.31226]
[1726847318721,0.39123,2555.9,2555.7,5.921]
[1726847319415,4.18584,2556.0,2555.7,5.921]
[1726847319609,0.39124,2555.8,2555.7,5.921]
[1726847319807,0.39124,2555.9,2555.7,5.921]
[1726847320005,1.36935,2555.8,2555.7,5.921]
[1726847320215,0.97817,2555.7,2555.4,5.922]
[1726847320414,3.59908,2555.6,2555.4,6.3133]
[1726847320715,0.3719,2555.8,2555.4,5.922]
[1726847320908,0.39126,2555.7,2555.5,0.39127]
[1726847321108,0.39128,2555.6,2555.4,6.31329]
[1726847321308,0.76315,2555.8,2555.6,0.39126]
[1726847321919,0.76315,2555.8,2555.6,0.39127]
[1726847322619,0.3719,2555.8,2555.7,0.39126]
[1726847322819,0.76315,2555.8,2555.6,0.39127]
[1726847323018,0.39126,2555.7,2555.5,0.39128]
[1726847323220,2.29487992,2555.8,2555.6,0.39127]
[1726847323523,0.39126,2555.7,2555.5,0.39128]
[1726847323717,2.29487992,2555.8,2555.6,0.39127]
[1726847324121,1.90362992,2555.8,2555.7,0.39126]
[1726847324419,1.90362992,2555.8,2555.4,6.324]
[1726847324420,0.76314,2555.8,2555.6,0.39126]
[1726847324621,0.3719,2555.8,2555.4,6.324]
[1726847324812,0.76314,2555.8,2555.6,0.39126]
[1726847325411,0.76315,2555.8,2555.6,0.39127]
[1726847326025,0.3719,2555.8,2555.5,0.39128]
[1726847326221,0.76315,2555.8,2555.6,0.39127]
[1726847326416,0.76315,2555.8,2555.5,0.39128]
[1726847326617,0.76315,2555.8,2555.6,0.39127]
[1726847327124,0.3719,2555.8,2555.6,0.39127]
[1726847327522,1.92294992,2556.0,2555.5,3.72822]
[1726847327717,1.92294992,2556.0,2555.6,0.3823]
[1726847327913,1.92294992,2556.0,2555.7,0.39126]
[1726847328126,1.92294992,2556.0,2555.8,0.39124]
[1726847328327,1.92294992,2556.0,2555.9,0.39123]
[1726847328328,1.53172992,2556.0,2555.9,0.39123]
[1726847328527,1.90502992,2556.2,2556.1,0.3912]
[1726847328820,2.84085738,2556.4,2556.2,0.39118]
[1726847328821,2.32738992,2556.4,2556.2,0.39118]
[1726847329020,0.4045,2556.4,2556.3,0.39117]
[1726847329222,2.29616992,2556.5,2556.2,0.39117]
[1726847329415,1.53172992,2556.4,2556.3,6.29117]
[1726847329618,0.39115,2556.4,2556.3,5.9]
[1726847329923,5.13067992,2556.4,2556.3,5.9]
[1726847331228,6.10855992,2556.4,2556.3,5.9]
[1726847331432,6.62202738,2556.4,2556.3,5.9]
[1726847331822,4.57683,2556.4,2556.3,5.9]
[1726847332530,0.97794,2556.3,2556.0,5.9]
[1726847332724,0.3912,2556.1,2556.0,6.29121]
[1726847332931,0.3912,2556.1,2556.0,5.9]
[1726847333231,0.7746,2556.1,2556.0,5.9]
[1726847333521,0.7746,2556.1,2556.0,6.29121]
[1726847334929,0.3834,2556.1,2556.0,6.29121]
[1726847335228,0.7746,2556.1,2556.0,5.9]
[1726847335820,5.3356,2556.1,2556.0,5.9]
[1726847336017,0.97804,2556.0,2555.7,0.4026]
[1726847336221,0.39123,2555.9,2555.8,0.39124]
[1726847337021,0.39123,2555.9,2555.8,0.39123]
[1726847337022,0.39124,2555.9,2555.8,0.39123]
[1726847337227,1.5311925,2555.9,2555.7,0.4026]
[1726847337525,1.5311925,2555.9,2555.7,0.79385]
[1726847337526,0.39124,2555.8,2555.7,0.79385]
[1726847337832,0.97815,2555.7,2555.3,5.9]
[1726847338032,0.97815,2555.7,2555.1,0.7691]
[1726847338033,4.74100249,2555.5,2555.1,0.7691]
[1726847338233,1.92454249,2555.2,2555.1,0.39135]
[1726847338526,2.04519738,2555.3,2554.9,9.1078]
[1726847338730,1.53461793,2555.2,2554.9,9.1078]
[1726847338929,0.39136,2555.0,2554.9,5.9]
[1726847339132,1.92597793,2555.0,2554.9,5.9]
[1726847339335,2.43655738,2555.0,2554.9,5.9]
[1726847339522,0.39141,2554.7,2554.5,3.59923]
[1726847339723,1.53495251,2554.7,2554.6,5.901]
[1726847340332,2.43660738,2554.8,2554.6,5.901]
[1726847340522,0.39141,2554.7,2554.6,5.901]
[1726847340726,2.04519738,2554.8,2554.6,5.901]
[1726847340934,1.53539994,2554.7,2554.6,10.20681]
[1726847341125,1.53539994,2554.9,2554.8,0.3914]
[1726847341321,1.53539994,2554.9,2554.8,4.3058]
[1726847341526,1.53539994,2555.1,2554.8,13.5313]
[1726847341725,2.04519738,2555.3,2555.1,0.39134]
[1726847341923,2.04519738,2555.4,2554.9,0.3789]
[1726847342338,2.04519738,2555.3,2555.0,0.39135]
[1726847342535,2.43651738,2555.3,2554.9,0.77027]
[1726847342738,2.43651738,2555.3,2555.0,0.39136]
[1726847342933,2.04519738,2555.3,2555.1,0.39135]
[1726847343128,2.04519738,2555.4,2555.1,0.39135]
[1726847343329,2.43650738,2555.4,2555.0,3.77136]
[1726847343529,2.04519738,2555.3,2555.0,3.77136]
[1726847343830,2.04519738,2555.3,2554.9,0.6409704]
[1726847344133,2.04519738,2555.3,2555.0,5.901]
[1726847344331,2.04519738,2555.4,2555.2,0.39133]
[1726847344537,2.04519738,2555.4,2555.3,0.4028]
[1726847345037,2.04519738,2555.4,2555.3,4.3164]
[1726847345939,2.04519738,2555.4,2555.3,0.79412]
[1726847346126,2.04519738,2555.5,2555.3,0.4028]
[1726847346328,2.54115694,2555.6,2555.4,0.3805]
[1726847346525,2.04855951,2555.5,2555.4,0.3805]
[1726847346928,2.04855951,2555.7,2555.4,10.2941]
[1726847347130,2.04855951,2555.7,2555.5,0.39128]
[1726847347335,2.04855951,2555.7,2555.6,0.39127]
[1726847347738,2.54115694,2555.9,2555.6,0.39127]
[1726847347739,2.04855951,2555.8,2555.7,0.39126]
[1726847348038,2.04855951,2555.8,2555.7,6.29226]
[1726847348240,2.04855951,2555.9,2555.8,0.39124]
[1726847348435,2.54115694,2556.0,2555.8,0.39124]
[1726847348832,2.54115694,2556.0,2555.7,5.901]
[1726847349029,2.04829819,2555.9,2555.7,5.901]
[1726847349235,2.93237694,2556.0,2555.8,0.39124]
[1726847349434,0.39124,2555.8,2555.7,5.901]
[1726847349741,2.93239694,2555.8,2555.7,5.901]
[1726847350038,3.71568694,2555.9,2555.7,5.901]
[1726847350240,2.04832362,2555.8,2555.7,6.29226]
[1726847350538,2.54115694,2556.0,2555.8,0.39124]
[1726847350737,2.54115694,2556.0,2555.9,0.39123]
[1726847351049,3.9789,2556.2,2556.0,0.39121]
[1726847351050,2.54115694,2556.1,2556.0,0.39121]
[1726847351537,2.54115694,2556.1,2555.9,0.78412]
[1726847351739,2.54115694,2556.1,2555.9,0.3929]
[1726847351942,2.54115694,2556.1,2555.9,0.78413]
[1726847352243,2.54115694,2556.3,2556.1,0.3912]
[1726847352446,3.2078,2556.5,2556.2,0.39118]
[1726847352447,2.54115694,2556.4,2556.2,0.39118]
[1726847352947,2.54115694,2556.4,2556.1,0.39119]
[1726847353242,2.93231694,2556.4,2556.2,0.39118]
[1726847353439,2.54115694,2556.4,2556.3,0.39117]
[1726847353638,3.2078,2556.5,2556.4,0.39115]
[1726847353639,5.74895694,2556.5,2556.4,0.39115]
[1726847353831,3.2078,2556.5,2556.3,0.39115]
[1726847354032,2.04805179,2556.4,2556.3,0.39117]
[1726847354446,2.04805179,2556.4,2556.3,4.30317]
[1726847354738,1.1589,2556.7,2556.4,3.912]
[1726847354739,2.55963108,2556.7,2556.4,3.912]
[1726847354937,3.2078,2557.2,2556.8,0.39109]
[1726847354938,3.0646578,2557.2,2556.8,0.39109]
[1726847355155,0.39105,2557.1,2556.8,0.39109]
[1726847355448,0.39105,2557.1,2556.8,0.39108]
[1726847355649,0.97759,2557.2,2556.8,0.39108]
[1726847355853,8.9440878,2557.4,2556.6,4.35778]
[1726847356051,0.39104,2557.2,2557.0,0.39105]
[1726847356357,0.39104,2557.2,2556.7,4.48728006]
[1726847356552,7.1856578,2557.7,2557.1,3.38]
[1726847356746,4.121,2557.7,2557.2,0.4102]
[1726847357050,3.9961,2558.0,2557.3,5.9]
[1726847357253,3.2078,2558.0,2557.4,3.38]
[1726847357457,3.2078,2558.3,2557.7,3.38]
[1726847357645,0.9772,2558.2,2557.6,0.39096]
[1726847357844,0.9772,2558.2,2557.5,0.197045]
[1726847358050,0.39091,2558.0,2557.7,0.39095]
[1726847358352,0.3909,2558.1,2557.7,0.39094]
[1726847358543,0.39088,2558.2,2557.4,4.35748]
[1726847358747,4.59398,2558.3,2557.4,3.57759295]
[1726847358952,0.3909,2558.1,2557.7,0.39094]
[1726847359252,0.9772,2558.2,2557.6,0.39096]
[1726847359455,0.9772,2558.2,2557.4,3.57759295]
[1726847359456,0.97735,2557.8,2557.2,0.4102]
[1726847359754,0.39101,2557.4,2557.3,5.871]
[1726847360056,0.391,2557.4,2557.3,5.871]
[1726847360559,0.39101,2557.3,2557.2,5.871]
[1726847362150,3.2078,2557.6,2557.2,5.871]
[1726847362351,1.2136,2557.7,2557.2,5.871]
[1726847362352,1.60456,2557.7,2557.4,0.39099]
[1726847362655,1.2136,2557.7,2557.5,0.39098]
[1726847362854,1.2136,2557.7,2557.2,5.871]
[1726847362855,0.8148,2557.7,2557.6,0.39097]
[1726847363056,0.409,2557.7,2557.6,0.39097]
[1726847363256,0.39093,2557.9,2557.6,0.39097]
[1726847363257,0.39093,2557.9,2557.6,4.30057]
[1726847363456,0.76792,2558.0,2557.3,3.39885277]
[1726847363658,0.377,2558.0,2557.3,3.39885277]
[1726847363958,0.39092,2557.9,2557.6,0.39096]
[1726847364158,0.39093,2557.9,2557.6,0.39096]
[1726847364456,0.76792,2558.0,2557.7,0.39095]
[1726847365157,0.377,2558.0,2557.3,0.2609757]
[1726847365356,0.39094,2557.8,2557.5,0.39098]
[1726847365658,3.2078,2558.4,2558.3,0.39086]
[1726847365865,0.39076,2559.0,2558.3,14.13595]
[1726847366047,0.39076,2559.0,2558.6,0.3908]
[1726847366251,4.5711,2559.3,2558.4,0.7798]
[1726847366252,3.5943,2559.3,2558.4,1.7569]
[1726847366552,3.5943,2559.3,2558.7,0.39079]
[1726847366756,3.5943,2559.3,2558.5,5.87]
[1726847366757,0.39077,2558.9,2558.5,5.87]
[1726847366960,0.39077,2558.9,2558.6,5.87]
[1726847367159,0.39078,2558.9,2558.6,5.87]
[1726847367354,0.39079,2558.8,2558.6,5.87]
[1726847367554,4.18467,2559.1,2558.6,5.87]
[1726847367860,0.3865,2559.3,2558.7,0.39079]
[1726847368050,0.39076,2559.0,2558.6,6.2608]
[1726847368256,1.36329,2559.3,2558.7,0.39079]
[1726847368456,0.39075,2559.1,2558.7,0.39079]
[1726847368961,0.39075,2559.1,2558.6,5.87]
[1726847368962,0.39073,2559.2,2558.8,0.39077]
[1726847369155,0.3865,2559.3,2558.6,5.87]
[1726847369556,3.2078,2559.4,2558.7,12.00590665]
[1726847369761,3.2078,2559.4,2559.0,0.39074]
[1726847369963,0.39067,2559.6,2559.0,3.2078]
[1726847370250,3.2078,2560.2,2559.4,3.38]
[1726847370455,3.59838,2560.2,2559.5,5.869]
[1726847370656,0.39059,2560.1,2559.5,10.41052407]
[1726847370857,3.2078,2559.9,2559.6,5.869]
[1726847371062,0.39063,2559.8,2559.6,5.869]
[1726847371361,0.39069,2559.4,2559.3,5.869]
[1726847371563,3.2078,2559.4,2559.3,5.869]
[1726847371760,3.59849,2559.4,2559.3,5.869]
[1726847372460,3.2078,2559.4,2559.1,5.867]
[1726847372662,0.39073,2559.2,2559.1,5.867]
[1726847372968,0.39075,2559.0,2558.9,5.867]
[1726847373162,3.2078,2559.1,2558.9,5.867]
[1726847373359,0.3907,2559.4,2558.9,6.25776]
[1726847373561,3.6042,2559.6,2559.0,4.52146532]
[1726847373763,0.3964,2559.6,2559.1,0.3736]
[1726847373966,3.6042,2559.6,2559.1,0.3736]
[1726847374264,3.6042,2559.6,2559.3,0.3907]
[1726847374570,0.3917,2559.7,2559.1,0.7754]
[1726847375262,0.3917,2559.7,2559.3,0.3907]
[1726847375465,0.3917,2559.7,2559.1,1.16613]
[1726847375466,0.39069,2559.5,2559.1,1.16613]
[1726847375665,3.2078,2559.6,2559.1,0.7754]
[1726847375968,0.39073,2559.2,2559.1,5.866]
[1726847376161,3.59853,2559.2,2559.1,5.866]
[1726847376861,3.2078,2559.2,2559.1,5.866]
[1726847377658,3.59852,2559.2,2559.1,5.866]
[1726847380371,0.3917,2559.7,2559.1,5.866]
[1726847380372,3.2078,2559.6,2559.1,15.7732]
[1726847380571,0.78235,2559.7,2559.4,0.39068]
[1726847380866,0.39067,2559.6,2559.2,0.7623]
[1726847381068,0.78235,2559.7,2559.4,0.39068]
[1726847381269,0.3917,2559.7,2559.4,0.39068]
[1726847381474,0.78235,2559.7,2559.4,0.39068]
[1726847381673,0.3917,2559.7,2559.2,0.7623]
[1726847381870,0.78235,2559.7,2559.4,0.39069]
[1726847382174,0.2,2560.0,2559.9,0.39062]
[1726847382372,3.38,2561.0,2559.9,0.39062]
[1726847382373,3.2078,2560.8,2560.0,0.97649]
[1726847382572,3.2078,2560.8,2560.1,3.5907]
[1726847382776,0.39051,2560.6,2560.2,3.2078]
[1726847383087,0.97618,2560.9,2560.1,0.3829]
[1726847383088,3.59836,2560.3,2560.1,0.3829]
[1726847383273,4.18418,2560.4,2560.2,5.47542]
[1726847383466,1.36694,2560.3,2560.2,5.47542]
[1726847383977,3.9056,2560.3,2559.7,9.773]
[1726847384273,0.39062,2559.9,2559.7,15.638]
[1726847384470,0.39073,2559.2,2559.0,0.25411499]
[1726847384771,0.39073,2559.2,2559.1,5.865]
[1726847384772,0.39072,2559.2,2559.1,5.865]
[1726847385071,4.18452,2559.5,2559.1,5.865]
[1726847385072,3.2078,2559.5,2559.1,5.865]
[1726847385261,3.2078,2559.8,2559.2,3.9072]
[1726847385465,4.18429,2560.1,2559.3,0.7655]
[1726847385763,0.39064,2559.8,2559.4,0.39069]
[1726847386365,3.2078,2560.1,2559.5,4.34894683]
[1726847386567,0.97655,2559.9,2559.5,4.34894683]
[1726847386766,0.39066,2559.7,2559.4,4.34894683]
[1726847386964,0.39064,2559.8,2559.4,0.39069]
[1726847387170,4.1843,2560.1,2559.5,0.39068]
[1726847387370,3.2078,2560.1,2559.3,0.7655]
[1726847387671,0.39059,2560.1,2559.7,0.39063]
[1726847387870,3.2078,2560.5,2559.6,6.5878]
[1726847388062,0.39053,2560.5,2559.9,3.2078]
[1726847388264,0.97624,2560.7,2560.1,0.39057]
[1726847388475,0.3843,2560.8,2560.2,0.39057]
[1726847388664,0.39053,2560.5,2560.1,0.39058]
[1726847388869,3.2078,2560.6,2560.1,0.39058]
[1726847389067,3.2078,2560.6,2560.0,6.6155]
[1726847389364,0.39056,2560.3,2560.0,6.6155]
[1726847389565,0.39057,2560.2,2560.0,6.6155]
[1726847389767,0.39056,2560.3,2560.0,6.6155]
[1726847389973,0.39056,2560.3,2560.0,7.0061]
[1726847390275,0.97632,2560.5,2560.0,6.6155]
[1726847390478,0.39053,2560.5,2560.0,6.6155]
[1726847390775,0.39053,2560.5,2560.1,3.59838]
[1726847391273,0.39052,2560.6,2560.2,0.39057]
[1726847391675,0.39052,2560.5,2560.1,3.59838]
[1726847391973,0.39051,2560.6,2560.2,0.39056]
[1726847392276,0.39053,2560.5,2560.1,3.59838]
[1726847392875,0.39055,2560.4,2560.1,3.2078]
[1726847393076,0.39054,2560.5,2560.1,3.59838]
[1726847393278,0.97627,2560.7,2560.1,3.2078]
[1726847393477,0.97627,2560.7,2560.1,3.59838]
[1726847393669,0.39053,2560.5,2560.1,3.59838]
[1726847393982,0.39053,2560.5,2560.1,3.2078]
[1726847394178,3.2078,2560.4,2559.7,3.2078]
[1726847394371,3.2078,2560.3,2559.8,5.837]
[1726847394577,0.39061,2560.0,2559.8,5.837]
[1726847394782,0.39059,2560.1,2559.8,6.22763]
[1726847395085,3.2078,2560.3,2559.9,0.39061]
[1726847395377,0.39056,2560.3,2560.0,0.3906]
[1726847395984,0.39056,2560.3,2559.9,3.2078]
[1726847396174,0.39056,2560.3,2560.0,0.3906]
[1726847396476,0.39054,2560.4,2560.1,0.39058]
[1726847396683,0.39054,2560.4,2560.2,0.3724]
[1726847397274,3.59833,2560.5,2560.2,0.3724]
[1726847397583,3.2078,2560.5,2560.2,0.7579]
[1726847397771,3.59833,2560.5,2560.2,1.14847]
[1726847397980,3.2078,2560.5,2560.3,0.39055]
[1726847398380,0.3905,2560.7,2560.2,3.9657]
[1726847398579,0.3905,2560.7,2560.2,0.7579]
[1726847398580,0.39054,2560.5,2560.2,0.7579]
[1726847398779,3.5921,2560.8,2560.2,1.14846]
[1726847398980,0.39052,2560.6,2560.3,0.39055]
[1726847399180,0.39053,2560.5,2560.3,0.39055]
[1726847399378,0.97607,2561.2,2560.4,4.23828785]
[1726847399579,0.39045,2561.0,2560.7,0.39048]
[1726847399779,0.39045,2561.0,2560.8,5.837]
[1726847400284,3.59826,2560.9,2560.8,5.837]
[1726847400489,1.36663,2560.9,2560.8,5.837]
[1726847400676,0.39045,2561.0,2560.8,5.837]
[1726847400986,3.2078,2561.5,2560.9,3.38]
[1726847401283,3.2078,2561.5,2561.0,0.4008]
[1726847401284,0.39038,2561.5,2561.0,0.4008]
[1726847401485,0.4,2561.7,2561.0,0.4008]
[1726847401786,0.97591,2561.6,2561.0,0.4008]
[1726847401979,0.97597,2561.4,2561.0,0.4008]
[1726847402182,3.2078,2561.1,2560.7,0.39049]
[1726847402390,0.3831,2561.3,2559.2,0.49374693]
[1726847402391,0.39052,2560.5,2560.4,0.3972]
[1726847402579,4.57464,2560.5,2560.4,5.836]
[1726847402982,3.9056,2560.5,2560.4,5.836]
[1726847403183,0.39052,2560.5,2560.4,5.836]
[1726847403490,1.36684,2560.5,2560.4,5.836]
[1726847403784,0.39051,2560.6,2560.4,6.22653]
[1726847403982,0.39052,2560.5,2560.4,5.836]
[1726847404189,0.39052,2560.6,2560.4,6.22653]
[1726847404374,3.2078,2560.8,2560.4,5.836]
[1726847404579,0.39052,2560.6,2560.4,6.22654]
[1726847405285,3.2078,2560.8,2560.5,3.9056]
[1726847405585,0.3999,2561.0,2560.8,0.39047]
[1726847405586,0.39047,2560.9,2560.8,0.39047]
[1726847405885,0.39047,2560.9,2560.7,0.39048]
[1726847406088,4.18387,2561.2,2560.8,3.9048]
[1726847406089,0.97606,2561.2,2560.8,3.9048]
[1726847406385,0.39046,2560.9,2560.8,0.39047]
[1726847406587,0.97611,2561.1,2560.7,0.76638]
[1726847406781,0.39047,2560.9,2560.8,5.836]
[1726847407583,0.39046,2561.0,2560.8,6.22647]
[1726847407886,0.39049,2560.7,2560.6,0.3912]
[1726847408086,0.39049,2560.7,2560.2,4.18422]
[1726847408087,3.2078,2560.8,2560.3,0.405]
[1726847408405,0.97655,2559.9,2559.4,5.836]
[1726847408588,0.97652,2560.0,2559.4,5.836]
[1726847408589,3.2078,2560.0,2559.4,5.836]
[1726847408895,1.5185992,2560.3,2559.4,5.836]
[1726847408896,0.97658,2559.8,2559.4,5.836]
[1726847409088,0.3844,2559.9,2559.4,5.836]
[1726847409287,0.97658,2559.8,2559.4,5.836]
[1726847409600,0.39067,2559.6,2559.4,6.22669]
[1726847409898,4.18445,2559.7,2559.2,0.79571]
[1726847410085,0.39069,2559.4,2559.3,5.836]
[1726847410281,0.39069,2559.5,2559.3,9.7432]
[1726847410589,0.39069,2559.5,2559.1,5.836]
[1726847410590,0.39072,2559.2,2559.1,5.836]
[1726847410999,0.39075,2559.1,2559.0,5.836]
[1726847411189,0.39078,2558.8,2558.7,9.767]
[1726847411691,0.39081,2558.6,2558.5,5.836]
[1726847412084,0.97708,2558.5,2558.1,5.836]
[1726847412293,0.39086,2558.3,2558.1,5.836]
[1726847412491,0.39088,2558.2,2558.1,5.836]
[1726847413195,1.9195992,2558.7,2558.1,15.7448]
[1726847413491,1.5185992,2558.9,2558.3,3.38]
[1726847413693,0.3999,2559.1,2558.7,3.38]
[1726847413694,1.01814406,2559.1,2558.7,3.38]
[1726847413896,5.1070992,2559.3,2558.7,3.38]
[1726847413897,1.01814406,2559.2,2558.7,3.38]
[1726847414192,1.39884406,2559.3,2558.7,3.8]
[1726847414393,1.01814406,2559.3,2559.1,3.8]
[1726847414588,1.01814406,2559.7,2559.2,5.838]
[1726847414894,1.01814406,2559.7,2559.3,0.3907]
[1726847414895,1.40879406,2559.7,2559.3,0.3907]
[1726847415103,4.22594406,2559.7,2559.2,10.47770859]
[1726847415393,0.39068,2559.5,2559.2,6.2288]
[1726847415697,0.3907,2559.4,2559.2,6.2288]
[1726847416284,0.39069,2559.5,2559.2,6.61952]
[1726847416486,1.40881406,2559.6,2559.2,6.61952]
[1726847416693,0.3907,2559.4,2559.2,6.2288]